Workbook

Sheet 1. Forside
A1: Herning Vand A/S (spildevand)
D8: Bilag A
D13: Indholdsfortegnelse
C16: Fane nr. 2 | D16: Samlet prisloft
C17: Fane nr. 3 | D17: Driftsomkostninger
C18: Fane nr. 4 | D18: Historiske investeringer
C19: Fane nr. 5 | D19: Gennemførte investeringer
C20: Fane nr. 6 | D20: Korrektion investeringer
C21: Fane nr. 7 | D21: Planlagte investeringer
C22: Fane nr. 8 | D22: 1:1 omkostninger
C23: Fane nr. 9 | D23: Miljø- og servicemål
C24: Fane nr. 10 | D24: Klimatilpasning
C25: Fane nr. 11 | D25: Nettofinansielle poster
C26: Fane nr. 12 | D26: Over- eller underdækning
C27: Fane nr. 13 | D27: Kontrol med indtægtsrammen og oversigt over ekstraordinære effektiviseringsgevinster

Sheet 2. Samlet prisloft
A1: ='1. Forside'!A1 -> Herning Vand A/S (spildevand)
B4: Fane 2. Samlet prisloft for 2015
B6: Driftsomkostninger
B7: Driftsomkostninger i prisloftet for 2014 | C7: ='3. Driftsomkostninger'!C20 -> 23006244.77 | D7: kr.
B8: Bortfald af væsentlige omkostninger | C8: =-'3. Driftsomkostninger'!C16 -> 0 | D8: kr.
B9: Korrektion for prisudviklingen 2014-2015 | C9: ='3. Driftsomkostninger'!C22 -> 18404.99581 | D9: kr.
B10: Forhøjelse til effektivt niveau iht. benchmarkingen | C10: ='3. Driftsomkostninger'!C28 -> 0 | D10: kr.
B11: Korrektion for generelt effektiviseringskrav | C11: =-'3. Driftsomkostninger'!C34 -> -101227.477 | D11: kr.
B12: Korrektion for individuelt effektiviseringskrav | C12: =-'3. Driftsomkostninger'!C43 -> -871361.5294 | D12: kr.
B13: Driftsomkostninger i alt | C13: =SUM(C7:C12) -> 22052060.75 | D13: kr. | E13: =C13 -> 22052060.75 | F13: kr.
B14: Investeringer
B15: Tillæg for historiske investeringer | C15: ='4. Historiske investeringer'!C9 -> 75777570.21 | D15: kr.
B16: Tillæg for gennemførte investeringer i 2011-2013 | C16: ='5. Gennemførte investeringer'!F42 -> 3280393.298 | D16: kr.
B17: Korrektion af tillæg for planlagte investeringer vedrørende 2013 | C17: ='6. Korrektion investeringer'!C10 -> -1063609.113 | D17: kr.
B18: Tillæg for planlagte investeringer i 2014 og 2015 | C18: ='7. Planlagte investeringer'!F20 -> 2273560 | D18: kr.
B19: Investeringstillæg i alt | C19: =SUM(C15:C18) -> 80267914.39 | D19: kr. | E19: =C19 -> 80267914.39 | F19: kr.
B20: Øvrige omkostninger mv.
B21: Tillæg for 1:1 omkostninger i 2015 | C21: ='8. 1-1 omkostninger'!C10 -> 36918500 | D21: kr.
B22: Tillæg vedr. revisorerklæringer og DANVA/FVD-kontingent | C22: ='8. 1-1 omkostninger'!C18 -> 120400 | D22: kr.
B23: Korrektion ift. faktiske 1:1 omkostninger i 2013 | C23: ='8. 1-1 omkostninger'!C24 -> -167869 | D23: kr.
B24: Tillæg for driftsomkostninger til miljø- og servicemål i 2015 | C24: ='9. Miljø- og servicemål'!C8 -> 0 | D24: kr.
B25: Korrektion ift. faktiske driftsomkostninger til miljø- og servicemål i 2013 | C25: ='9. Miljø- og servicemål'!C15 -> 0 | D25: kr.
B26: Tillæg for driftsomkostninger til medfinansiering af klimatilpasningsprojekter i 2015 | C26: ='10. Klimatilpasning'!C12 -> 2064777 | D26: kr.
B27: Korrektion ift. faktiske omkostninger til medfinansiering af klimatilpasningsprojekter i 2013 | C27: ='10. Klimatilpasning'!C19 -> -889391 | D27: kr.
B28: Tillæg/fradrag for nettofinansielle poster i 2015 | C28: ='11. Nettofinansielle poster'!C9 -> 1783750 | D28: kr.
B29: Korrektion ift. faktiske nettofinansielle poster i 2013 | C29: ='11. Nettofinansielle poster'!C16 -> 373416 | D29: kr.
B30: Øvrige omkostninger mv. i alt | C30: =SUM(C21:C29) -> 40203583 | D30: kr. | E30: =C30 -> 40203583 | F30: kr.
B31: Historisk over- eller underdækning
B32: Tillæg/fradrag for over- eller underdækning til og med 2010 | C32: ='12. Over- eller underdækning'!C11 -> -4876505.249 | D32: kr. | E32: =C32 -> -4876505.249 | F32: kr.
B33: Korrektion i forhold til tidligere indtægtsramme
B34: Korrektion for overholdelse af indtægtsramme i prisloft 2013 | C34: ='13. Kontrol med indtægtsrammen'!E27 -> 7607930.976 | D34: kr. | E34: =C34 -> 7607930.976 | F34: kr.
B35: Samlet prisloft
B36: Indtægtsramme i 2015 | E36: =SUM(E13:E34) -> 145254983.9 | F36: kr.
B37: Debiteret vandmængde i 2013 | E37: 4164166 | F37: m3
B38: Prisloft 2015 | E38: =E36/E37 -> 34.88213099 | F38: kr./m3

Sheet 3. Driftsomkostninger
A1: ='1. Forside'!A1 -> Herning Vand A/S (spildevand)
B4: Fane 3. Driftsomkostninger
B6: Driftsomkostningerne i prisloftet for 2014
B7: Korrigerede driftsomkostninger i prisloftet for 2013 (DOiPL 2013) | C7: 22666251 | D7: kr.
B8: Prisfremskrivning 1,5 pct. | C8: =0.015*SUM(C7:C7) -> 339993.765 | D8: kr.
B9: Generelt effektiviseringskrav (0 pct.) | C9: 0 | D9: kr.
B10: Individuelt effektiviseringskrav | C10: 0 | D10: kr.
B11: Driftsomkostningerne i prisloftet for 2014 (DOiPL 2014) | C11: =SUM(C7:C10) -> 23006244.77 | D11: kr.
B14: Korrektion for forventet bortfald af væsentlige omkostninger
B15: Selskabets indberettede bortfald af væsentlige omkostninger inden 2015 | C15: 0 | D15: kr.
B16: Korrektion for forventet bortfald | C16: =SUM(C15:C15) -> 0 | D16: kr.
B19: Korrektion for prisudviklingen fra 2014-2015
B20: Driftsomkostningerne i prisloftet for 2014 | C20: =C11-C16 -> 23006244.77 | D20: kr.
B21: Prisudvikling 2014 - 2015 | C21: 0.08 | D21: pct.
B22: Korrektion for prisudvikling | C22: =C20*(C21/100) -> 18404.99581 | D22: kr.
B25: Eventuel forhøjelse til effektivt niveau iht. benchmarkingen
B26: Selskabets effektive driftsomkostninger iht. benchmarkingen | C26: 16550692.65 | D26: kr.
B27: Selskabets pristalskorrigerede driftsomkostninger i 2015-niveau | C27: =C20+C22 -> 23024649.76 | D27: kr.
B28: Eventuel forhøjelse til effektivt niveau | C28: =IF(C27>C26,0,C26-C27) -> 0 | D28: kr.
B31: Korrektion for generelt effektiviseringskrav
B32: Driftsomkostningerne i prisloftet for 2014 | C32: =C20 -> 23006244.77 | D32: kr.
B33: Generelt effektiviseringskrav | C33: 0.44 | D33: pct.
B34: Endeligt generelt effektiviseringskrav | C34: =C32*(C33/100) -> 101227.477 | D34: kr.
B37: Korrektion for individuelt effektiviseringskrav
B38: Rå effektiviseringspotentiale | C38: 6455552.347 | D38: kr.
B39: Effektiviseringspotentiale efter eventuel korrektion for særlige forhold | C39: 6455552.347 | D39: kr.
B40: Effektiviseringspotentiale efter forsigtighedshensyn | C40: 3485446.117 | D40: kr.
B41: Effektiviseringspotentiale efter eventuel korrektion for sammensætning af signifikante costdrivere | C41: 3485446.117 | D41: kr.
B42: Umiddelbart effektiviseringskrav | C42: =C41/4 -> 871361.5294 | D42: kr.
B43: Endeligt individuelt effektiviseringskrav | C43: =IF(C42>0.05*C20,0.05*C20,IF(C42<0.01*C20,0,C42)) -> 871361.5294 | D43: kr.

Sheet 4. Historiske investeringer
A1: ='3. Driftsomkostninger'!A1 -> Herning Vand A/S (spildevand)
B4: Fane 4. Historiske investeringer
B6: Tillæg for historiske investeringer
B7: Værdi af selskabets materielle anlægsaktiver pr. 1. januar 2010 | C7: 3292720473 | D7: kr.
B8: Den årlige standardafskrivning på de materielle anlægsaktiver iht. POLKA | C8: 75777570.21 | D8: kr.
B9: Tillæg i alt i 2015 | C9: =C8 -> 75777570.21 | D9: kr.

Sheet 5. Gennemførte investeringer
A1: ='4. Historiske investeringer'!A1 -> Herning Vand A/S (spildevand)
B4: Fane 5. Gennemførte investeringer i 2010 - 2013
B6: Tillæg for gennemførte investeringer i 2013
B7: Beskrivelse af investeringen | C7: Årstal | D7: Std. levetid (år) | E7: Anskaffelses-pris (kr.) | F7: Afskrivning
B8: Arbejdsplads | C8: 2013 | D8: 5 | E8: 232873 | F8: =E8/D8 -> 46574.6 | G8: kr.
B9: Brønde | C9: 2013 | D9: 75 | E9: 2830670 | F9: =E9/D9 -> 37742.26667 | G9: kr.
B10: Jordbassin Klasse A | C10: 2013 | D10: 50 | E10: 7548279 | F10: 150965.58 | G10: kr.
B11: Ledningsnet = Ø 200 mm | C11: 2013 | D11: 75 | E11: 8629318 | F11: 115057.5733 | G11: kr.
B12: Pumpestationer i brønde (< 6,25 m2), Mek/EL | C12: 2013 | D12: 20 | E12: 325742 | F12: 16287.1 | G12: kr.
B13: Pumpestationer i brønde (< 6,25 m2), SRO | C13: 2013 | D13: 10 | E13: 94647 | F13: 9464.7 | G13: kr.
B14: Pumpestationer i underjordiske bygværker (<50 m2), Mek/El | C14: 2013 | D14: 20 | E14: 115925 | F14: 5796.25 | G14: kr.
B15: Ø 1000 mm < Ledningsnet = Ø 1200 mm | C15: 2013 | D15: 75 | E15: 39041 | F15: 520.5466667 | G15: kr.
B16: Ø 200 mm < Ledningsnet = Ø 500 mm | C16: 2013 | D16: 75 | E16: 5570952 | F16: 74279.36 | G16: kr.
B17: Ø 500 mm < Ledningsnet = Ø 800 mm | C17: 2013 | D17: 75 | E17: 2270294 | F17: 30270.58667 | G17: kr.
B18: Ø 800 mm < Ledningsnet = Ø 1000 mm | C18: 2013 | D18: 75 | E18: 3154365 | F18: 42058.2 | G18: kr.
B19: Arbejdsplads | C19: 2013 | D19: 5 | E19: 26959 | F19: 5391.8 | G19: kr.
B20: Køretøjer, personbil | C20: 2013 | D20: 5 | E20: 394949 | F20: 78989.8 | G20: kr.
B21: Pumpestationer i brønde (< 6,25 m2), SRO | C21: 2013 | D21: 10 | E21: 212133 | F21: 21213.3 | G21: kr.
B22: Brønde | C22: 2013 | D22: 50 | E22: 5133 | F22: 102.66 | G22: kr.
B23: Brønde | C23: 2013 | D23: 50 | E23: 2567 | F23: 51.34 | G23: kr.
B24: Brønde | C24: 2013 | D24: 50 | E24: 2567 | F24: 51.34 | G24: kr.
B25: Brønde | C25: 2013 | D25: 50 | E25: 20532 | F25: 410.64 | G25: kr.
B26: Brønde | C26: 2013 | D26: 50 | E26: 2567 | F26: 51.34 | G26: kr.
B27: Brønde | C27: 2013 | D27: 50 | E27: 94963 | F27: 1899.26 | G27: kr.
B28: Brønde | C28: 2013 | D28: 50 | E28: 12833 | F28: 256.66 | G28: kr.
B29: Brønde | C29: 2013 | D29: 50 | E29: 7700 | F29: 154 | G29: kr.
B30: Brønde | C30: 2013 | D30: 50 | E30: 53898 | F30: 1077.96 | G30: kr.
B31: Brønde | C31: 2013 | D31: 50 | E31: 2567 | F31: 51.34 | G31: kr.
B32: Brønde | C32: 2013 | D32: 50 | E32: 107796 | F32: 2155.92 | G32: kr.
B33: Brønde | C33: 2013 | D33: 50 | E33: 2567 | F33: 51.34 | G33: kr.
B34: Brønde | C34: 2013 | D34: 50 | E34: 5133 | F34: 102.66 | G34: kr.
B35: Brønde | C35: 2013 | D35: 50 | E35: 5133 | F35: 102.66 | G35: kr.
B36: Brønde | C36: 2013 | D36: 50 | E36: 5133 | F36: 102.66 | G36: kr.
B37: Brønde | C37: 2013 | D37: 50 | E37: 17966 | F37: 359.32 | G37: kr.
B38: Brønde | C38: 2013 | D38: 50 | E38: 2567 | F38: 51.34 | G38: kr.
B39: Brønde | C39: 2013 | D39: 50 | E39: 2567 | F39: 51.34 | G39: kr.
B40: Tillæg for 2013 | F40: =SUM(F8:F39) -> 641695.4433 | G40: kr.
B41: Tillæg for 2010 - 2012 | F41: 2638697.855 | G41: kr.
B42: Samlet tillæg for gennemførte investeringer | F42: =F40+F41 -> 3280393.298 | G42: kr.

Sheet 6. Korrektion investeringer
A1: ='5. Gennemførte investeringer'!A1 -> Herning Vand A/S (spildevand)
B4: Fane 6. Korrektion af tillæg for planlagte investeringer
B6: Korrektion af tillæg for planlagte investeringer vedr. 2013
B7: Tillæg for planlagte investeringer i 2013 i prisloft 2013 | C7: 953333 | D7: kr.
B8: Tillæg for planlagte investeringer i 2013 i prisloft 2014 | C8: 1393667 | D8: kr.
B9: Selskabets faktiske afskrivninger på gennemførte investeringer i 2013 | C9: ='5. Gennemførte investeringer'!F40 -> 641695.4433 | D9: kr.
B10: Korrektion af tillæg for planlagte investeringer vedr. 2013 | C10: =C9-C7+C9-C8 -> -1063609.113 | D10: kr.

Sheet 7. Planlagte investeringer
A1: ='6. Korrektion investeringer'!A1 -> Herning Vand A/S (spildevand)
B4: Fane 7. Planlagte investeringer
B6: Tillæg for planlagte investeringer i 2014 og 2015
B7: Beskrivelse af investeringen | C7: Årstal | D7: Std. levetid (år) | E7: Anskaffelses-pris (kr.) | F7: Afskrivning
B8: Ledningsnet = Ø 200 mm | C8: 2014 | D8: 75 | E8: 47635000 | F8: =E8/D8 -> 635133.3333 | G8: kr.
B9: Jordbassin Klasse B | C9: 2014 | D9: 50 | E9: 24363000 | F9: =E9/D9 -> 487260 | G9: kr.
B10: Pumpestationer i brønde (< 6,25 m2), Mek/EL | C10: 2014 | D10: 20 | E10: 500000 | F10: =E10/D10 -> 25000 | G10: kr.
B11: Køretøjer, små lastvogne (< 3.500 kg.) | C11: 2014 | D11: 5 | E11: 350000 | F11: 70000 | G11: kr.
B12: Administrationbygninger | C12: 2014 | D12: 75 | E12: 8000000 | F12: 106666.6667 | G12: kr.
B13: Ledningsnet = Ø 200 mm | C13: 2015 | D13: 75 | E13: 43236000 | F13: 576480 | G13: kr.
B14: Jordbassin Klasse B | C14: 2015 | D14: 50 | E14: 12401000 | F14: 248020 | G14: kr.
B15: Strømpeforing = Ø 200 mm | C15: 2015 | D15: 50 | E15: 1500000 | F15: 30000 | G15: kr.
B16: Køretøjer, små lastvogne (< 3.500 kg.) | C16: 2015 | D16: 5 | E16: 350000 | F16: 70000 | G16: kr.
B17: Pumpestationer i brønde (< 6,25 m2), Mek/EL | C17: 2015 | D17: 20 | E17: 500000 | F17: =E17/D17 -> 25000 | G17: kr.
B18: Tillæg for 2014 | F18: =SUMIF(C8:C16,"2014",F8:F16) -> 1324060 | G18: kr.
B19: Tillæg for 2015 | F19: =SUMIF(C8:C17,"2015",F8:F17) -> 949500 | G19: kr.
B20: Tillæg i alt | F20: =F18+F19 -> 2273560 | G20: kr.

Sheet 8. 1-1 omkostninger
A1: ='7. Planlagte investeringer'!A1 -> Herning Vand A/S (spildevand)
B4: Fane 8. 1:1 omkostninger
B6: Tillæg for budgetterede 1:1 omkostninger i 2015
B7: Betaling til Forsyningssekretariatet | C7: 16500 | D7: kr.
B8: Køb af varer og tjenesteydelser hos et andet prisloftreguleret vandselskab | C8: 36502000 | D8: kr.
B9: Ejendomsskatter | C9: 400000 | D9: kr.
B10: Tillæg i alt | C10: =SUM(C7:C9) -> 36918500 | D10: kr.
B15: Tillæg for budgetterede nødvendige udgifter til revisorerklæringer samt ordinært medlemskab af DANVA og FVD i 2015
B16: Betaling for ordinært medlemskab af DANVA/FVD | C16: 100400 | D16: kr.
B17: Betaling for revisorerklæringer | C17: 20000 | D17: kr.
B18: Tillæg i alt | C18: =SUM(C16:C17) -> 120400 | D18: kr.
B21: Korrektion af tillæg for faktiske 1:1 omkostninger (inkl. revisorerklæringer og ordinært medlemskab af DANVA/FVD) i 2013
B22: Selskabets faktiske 1:1 omkostninger mv. i 2013, jf. reguleringsregnskabet | C22: 3952381 | D22: kr.
B23: Tillæg for budgetterede 1:1 omkostninger mv. i prisloft 2013 | C23: 4120250 | D23: kr.
B24: Korrektion af tillæg for budgetterede 1:1 omkostninger mv. i 2013 | C24: =C22-C23 -> -167869 | D24: kr.

Sheet 9. Miljø- og servicemål
A1: ='8. 1-1 omkostninger'!A1 -> Herning Vand A/S (spildevand)
B4: Fane 9. Driftsomkostninger til miljø- og servicemål
B6: Tillæg for budgetterede driftsomkostninger til miljø- og servicemål i 2015
C7: 0 | D7: kr.
B8: Tillæg i alt | C8: =SUM(C7:C7) -> 0 | D8: kr.
B12: Korrektion af tillæg for faktiske driftsomkostninger til miljø- og servicemål i 2013
B13: Selskabets faktiske driftsomkostninger til miljø- og servicemål i 2013, jf. reguleringsregnskabet | C13: 0 | D13: kr.
B14: Tillæg for budgetterede driftsomkostninger til miljø- og servicemål i prisloft 2013 | C14: 0 | D14: kr.
B15: Korrektion af tillæg for budgetterede driftsomkostninger til miljø- og servicemål i 2013 | C15: =C13-C14 -> 0 | D15: kr.

Sheet 10. Klimatilpasning
A1: ='9. Miljø- og servicemål'!A1 -> Herning Vand A/S (spildevand)
B4: Fane 10. Medfinansiering af klimatilpasningsprojekter
B7: Tillæg for budgetterede omkostninger til medfinansiering af klimatilpasningsprojekter i 2015
B8: Hammerum Å/Kløvervej (godkendt i 2013) | C8: 117415 | D8: kr.
B9: Knudmosen/Miljøvej (godkendt i 2013) | C9: 356968 | D9: kr.
B10: Lillelund Engpark (godkendt i 2013) | C10: 416220 | D10: kr.
B11: Herningsholm Å/Gullestrup (godkendt i 2014) | C11: 1174174 | D11: kr.
B12: Tillæg i alt | C12: =SUM(C8:C11) -> 2064777 | D12: kr.
B16: Korrektion af tillæg for faktiske omkostninger til medfinansiering af klimatilpasningsprojekter i 2013
B17: Selskabets faktiske driftsomkostninger til klimatilpasningsprojekter i 2013, jf. reguleringsregnskabet | C17: 0 | D17: kr.
B18: Tillæg for budgetterede driftsomkostninger til klimatilpasningsprojekter i prisloft 2013 | C18: 889391 | D18: kr.
B19: Korrektion af tillæg for budgetterede omkostninger til klimatilpasningsprojekter i 2013 | C19: =C17-C18 -> -889391 | D19: kr.

Sheet 11. Nettofinansielle poster
A1: ='10. Klimatilpasning'!A1 -> Herning Vand A/S (spildevand)
B4: Fane 11. Nettofinansielle poster
B6: Tillæg for budgetterede nettofinansielle poster i 2015
B7: Budgetterede renteudgifter og gebyrer i 2015 | C7: 2283750 | D7: kr.
B8: Budgetterede renteindtægter i 2015 | C8: 500000 | D8: kr.
B9: Tillæg/fradrag i alt | C9: =C7-C8 -> 1783750 | D9: kr.
B13: Korrektion af tillæg for faktiske nettofinansielle poster i 2013
B14: Selskabets faktiske nettofinansielle poster i 2013, jf. reguleringsregnskabet | C14: -678584 | D14: kr.
B15: Tillæg for budgetterede nettofinansielle poster i prisloft 2013 | C15: -1052000 | D15: kr.
B16: Korrektion af tillæg for budgetterede nettofinansielle poster i 2013 | C16: =C14-C15 -> 373416 | D16: kr.

Sheet 12. Over- eller underdækning
A1: ='11. Nettofinansielle poster'!A1 -> Herning Vand A/S (spildevand)
B4: Fane 12. Over- eller underdækning til og med 2010
B6: Tillæg/fradrag for over- eller underdækning til og med 2010
B7: Opgjort over- eller underdækning per 31. december 2010 | C7: -49048753 | D7: kr.
B8: Heraf beløb indregnet i prislofterne for 2011 - 2014 | C8: -19789721.51 | D8: kr.
B9: Endnu ikke indregnet over- eller underdækning | C9: =C7-C8 -> -29259031.49 | D9: kr.
B10: Resterende indregningsperiode (fastsat i prisloftet for 2012) | C10: 6 | D10: år
B11: Tillæg/fradrag i alt | C11: =IF(C7=0,0,C9/C10) -> -4876505.249 | D11: kr.

Sheet 13. Kontrol med indtægtsrammen
A1: ='12. Over- eller underdækning'!A1 -> Herning Vand A/S (spildevand)
B4: Fane 13. Korrektion for overholdelse af indtægtsrammen i prisloftet for 2013
B6: Samlet opgørelse vedrørende overholdelse af indtægtsrammen i prisloftet for 2013
B7: Indtægtsramme i prisloftet for 2013 | E7: 138352305.9 | F7: kr.
B8: Ikke anvendt likviditet vedrørende investeringer i 2013
B9: Tillæg for historiske investeringer | C9: 89148608.93 | D9: kr.
B10: Tillæg for gennemførte investeringer i 2011 | C10: 1540926 | D10: kr.
B11: Korrektion af tillæg for planlagte investeringer i 2011 | C11: -402600 | D11: kr.
B12: Tillæg for planlagte investeringer i 2012 og 2013 | C12: 2357733 | D12: kr.
B13: Indtægter fra tilslutningsbidrag | C13: 2490685 | D13: kr.
B14: Indtægter fra salg af anlægsaktiver | C14: 65000 | D14: kr.
B15: Erstatninger vedr. anlægsaktiver mv. | C15: 0 | D15: kr.
B16: Ekstraordinær effektiviseringsgevinst anvendt til investeringer | C16: 0 | D16: kr.
B17: Udgifter til investeringer | C17: -56355469 | D17: kr.
B18: Ikke anvendt likviditet vedr. investeringer i alt | C18: =SUM(C9:C17) -> 38844883.93 | D18: kr. | E18: =IF(C18<0,0,-C18) -> -38844883.93 | F18: kr.
B19: Ekstraordinære effektiviseringsgevinster anvendt til takstnedsættelse
B20: Ekstraordinær effektiviseringsgevinst anvendt til takstnedsættelse | C20: 0 | D20: kr. | E20: =-C20 -> 0 | F20: kr.
B21: Korrektion af ikke opkrævet tillæg fra 2011 i prisloft 2013
B22: Korrektion af ikke opkrævet tillæg fra 2011 i prisloft 2013 | C22: 0 | D22: kr. | E22: =-C22 -> 0 | F22: kr.
B23: Indtægter fra primære aktiviteter mv.
B24: Indtægter fra kubikmetertakster, faste takster, særbidrag, målergebyrer samt andre takster og gebyrer | C24: 91899491 | D24: kr.
B25: Andre indtægter i prisloftåret, som selskabet har opnået i forbindelse med eller som følge af selskabets primære aktiviteter | C25: 0 | D25: kr.
B26: Indtægter fra primære aktiviteter mv. i alt | C26: =SUM(C24:C25) -> 91899491 | D26: kr. | E26: =-C26 -> -91899491 | F26: kr.
B27: Tillæg/fradrag i prisloftet for 2015 i alt | E27: =E7+E18+E20+E22+E26 -> 7607930.976 | F27: kr.
B31: Oversigt over ekstraordinære effektiviseringsgevinster
C33: 2012 | E33: 2013 | G33: 2014 | I33: 2015 | K33: 2016
B34: Indhentet ekstraordinær effektiviseringsgevinst | C34: 907498 | D34: kr. | E34: 2009165 | F34: kr. | H34: kr. | J34: kr. | L34: kr.
B35: Gevinst anvendt til investeringer | C35: 0 | D35: kr. | E35: 0 | F35: kr. | H35: kr. | J35: kr. | L35: kr.
B36: Gevinst anvendt til takstnedsættelse | C36: 0 | D36: kr. | E36: 0 | F36: kr. | H36: kr. | J36: kr. | L36: kr.
B37: Korrektion for effektiviseringsgevinst der ikke er anvendt inden 4 år | C37: 0 | D37: kr. | E37: 0 | F37: kr. | H37: kr. | J37: kr. | K37: =IF(C38>SUM(E35:I36),C38-SUM(E35:I36),0)*-1 -> -907498 | L37: kr.
B38: Resterende gevinst | C38: =C34-C35-C36 -> 907498 | D38: kr. | E38: =C38+E34-E35-E36 -> 2916663 | F38: kr. | G38: =E38+G34-G35-G36 -> 2916663 | H38: kr. | I38: =G38+I34-I35-I36 -> 2916663 | J38: kr. | K38: =K34-K35-K36+K37+I38 -> 2009165 | L38: kr.
